fUST/lending_fUST_20250717
["ID","MTS","AMOUNT","RATE_DAILY","PERIOD"]
[372630982,1752718240310,-460.0,0.00018194,2]
[372630984,1752718240319,-465.24848854,0.00018194,2]
[372630986,1752718240328,-580.03797569,0.00018194,2]
[372630988,1752718240338,-460.0,0.00018194,2]
[372630990,1752718240348,-460.0,0.00018194,2]
[372630992,1752718240359,-460.0,0.00018194,2]
[372630994,1752718240369,-460.0,0.00018194,2]
[372630996,1752718240378,-460.0,0.00018194,2]
[372630998,1752718240388,-461.16527162,0.00018194,2]
[372631000,1752718240398,-461.60194562,0.00018194,2]
[372631002,1752718240407,-1415.87,0.00018194,2]
[372631004,1752718240417,-460.0,0.00018194,2]
[372631006,1752718240426,-460.0,0.00018194,2]
[372631008,1752718240438,-563.75,0.00018194,2]
[372631011,1752718240448,-464.64234441,0.00018194,2]
[372631013,1752718240458,-935.83,0.00018194,2]
[372631015,1752718240468,-461.92796004,0.00018194,2]
[372631017,1752718240477,-616.4,0.00018194,2]
[372631019,1752718240487,-417.10420488,0.00018194,2]
[372631021,1752718240496,-460.0,0.00018194,2]
[372631023,1752718240505,-461.83662128,0.00018194,2]
[372631025,1752718240514,-460.0,0.00018194,2]
[372631027,1752718240524,-2243.98,0.00018194,2]
[372631029,1752718240533,-460.0,0.00018194,2]
[372631031,1752718240544,-460.0,0.00018194,2]
[372631033,1752718240553,-4796.11,0.00018194,2]
[372631035,1752718240563,-5566.33,0.00018194,2]
[372631037,1752718240572,-460.0,0.00018194,2]
[372631039,1752718240582,-1639.65,0.00018194,2]
[372631041,1752718240591,-460.0,0.00018194,2]
[372631042,1752718240600,-461.61239973,0.00018194,2]
[372631043,1752718240611,-460.0,0.00018194,2]
[372631044,1752718240620,-2114.97,0.00018194,2]
[372631045,1752718240630,-460.0,0.00018194,2]
[372631046,1752718240640,-740.05,0.00018194,2]
[372631047,1752718240650,-2723.58,0.00018194,2]
[372631048,1752718240660,-462.09829444,0.00018194,2]
[372631049,1752718240669,-460.0,0.00018194,2]
[372631050,1752718240679,-460.0,0.00018194,2]
[372631051,1752718240688,-463.17059469,0.00018194,2]
[372631052,1752718240698,-460.0,0.00018194,2]
[372631053,1752718240707,-460.0,0.00018194,2]
[372631054,1752718240717,-460.0,0.00018194,2]
[372631055,1752718240726,-461.0882898,0.00018194,2]
[372631056,1752718240736,-460.0,0.00018194,2]
[372631057,1752718240746,-592.06073241,0.00018194,2]
[372631058,1752718240755,-3000.53,0.00018194,2]
[372631059,1752718240765,-410.72269936,0.00018195,2]
[372631060,1752718240774,-554.75904749,0.00018195,2]
[372631061,1752718240784,-460.0,0.00018195,2]
[372631062,1752718240793,-461.53405709,0.00018195,2]
[372631063,1752718240803,-460.0,0.00018195,2]
[372631064,1752718240816,-463.032645,0.00018195,2]
[372631065,1752718240826,-460.0,0.00018195,2]
[372631066,1752718240836,-460.0,0.00018195,2]
[372631067,1752718240845,-461.46124485,0.00018195,2]
[372631068,1752718240855,-461.56715771,0.00018195,2]
[372631069,1752718240865,-462.06796028,0.00018195,2]
[372631070,1752718240874,-461.74913352,0.00018195,2]
[372631071,1752718240884,-460.0,0.00018195,2]
[372631072,1752718240895,-463.56044644,0.00018195,2]
[372631073,1752718240905,-460.0,0.00018195,2]
[372631074,1752718240914,-600.25955862,0.00018195,2]
[372631075,1752718240924,-462.52547987,0.00018195,2]
[372631076,1752718240933,-463.67456837,0.00018195,2]
[372631077,1752718240944,-460.0,0.00018195,2]
[372631078,1752718240954,-461.54557077,0.00018195,2]
[372631079,1752718240963,-460.0,0.00018195,2]
[372631080,1752718240972,-460.0,0.00018195,2]
[372631081,1752718240982,-461.37419562,0.00018195,2]
[372631082,1752718240991,-461.98427626,0.00018195,2]
[372631083,1752718241001,-460.0,0.00018195,2]
[372631084,1752718241012,-462.60642968,0.00018195,2]
[372631085,1752718241021,-460.0,0.00018195,2]
[372631086,1752718241031,-461.93643596,0.00018195,2]
[372631087,1752718241040,-461.32575931,0.00018195,2]
[372631088,1752718241050,-483.78245552,0.00018195,2]
[372631089,1752718241060,-463.62222371,0.00018195,2]
[372631090,1752718241069,-462.71822812,0.00018195,2]
[372631091,1752718241078,-460.45703003,0.00018195,2]
[372631092,1752718241087,-460.0,0.00018195,2]
[372631093,1752718241097,-464.34862736,0.00018195,2]
[372631094,1752718241108,-460.0,0.00018195,2]
[372631095,1752718241117,-460.0,0.00018195,2]
[372631096,1752718241127,-461.80932047,0.00018195,2]
[372631097,1752718241136,-466.61575344,0.00018195,2]
[372631098,1752718241146,-460.0,0.00018195,2]
[372631099,1752718241156,-460.0,0.00018195,2]
[372631100,1752718241165,-460.0,0.00018195,2]
[372631101,1752718241175,-460.90236052,0.00018195,2]
[372631102,1752718241184,-462.06,0.00018195,2]
[372631103,1752718241194,-460.0,0.00018195,2]
[372631104,1752718241203,-460.0,0.00018195,2]
[372631105,1752718241213,-462.31946399,0.00018195,2]
[372631106,1752718241222,-461.25543892,0.00018195,2]
[372631107,1752718241233,-460.0,0.00018195,2]
[372631108,1752718241243,-460.0,0.00018195,2]
[372631109,1752718241254,-460.0,0.00018195,2]
[372631110,1752718241264,-460.0,0.00018195,2]
[372631111,1752718241274,-460.0,0.00018195,2]
[372631112,1752718241284,-463.74305608,0.00018195,2]
[372631113,1752718241295,-461.84353659,0.00018195,2]
[372631114,1752718241305,-460.0,0.00018195,2]
[372631115,1752718241314,-462.00079373,0.00018195,2]
[372631116,1752718241324,-467.18086209,0.00018195,2]
[372631117,1752718241334,-463.32917827,0.00018195,2]
[372631118,1752718241343,-461.97713719,0.00018195,2]
[372631119,1752718241353,-461.14751717,0.00018195,2]
[372631120,1752718241364,-460.0,0.00018195,2]
[372631121,1752718241374,-462.20338067,0.00018195,2]
[372631122,1752718241383,-460.0,0.00018195,2]
[372631123,1752718241393,-461.78548304,0.00018195,2]
[372631127,1752718241485,-464.50643955,0.00018195,2]
[372631129,1752718241496,-460.0,0.00018195,2]
[372631131,1752718241506,-460.0,0.00018195,2]
[372631133,1752718241515,-464.43169001,0.00018195,2]
[372631135,1752718241524,-461.76217996,0.00018195,2]
[372631137,1752718241534,-460.0,0.00018195,2]
[372631139,1752718241543,-460.0,0.00018195,2]
[372631141,1752718241552,-462.28272938,0.00018195,2]
[372631143,1752718241561,-460.0,0.00018195,2]
[372631145,1752718241571,-462.43376462,0.00018195,2]
[372631147,1752718241581,-460.0,0.00018196,2]
[372631149,1752718241590,-460.0,0.00018196,2]
[372631151,1752718241599,-460.0,0.00018196,2]
[372631153,1752718241610,-460.0,0.00018196,2]
[372631155,1752718241619,-465.29565872,0.00018196,2]
[372631157,1752718241629,-460.0,0.00018196,2]
[372631160,1752718241638,-1078.71,0.00018196,2]
[372631162,1752718241649,-460.0,0.00018196,2]
[372631164,1752718241658,-461.46314005,0.00018196,2]
[372631166,1752718241668,-466.55013412,0.00018196,2]
[372631168,1752718241678,-460.0,0.00018196,2]
[372631170,1752718241687,-460.0,0.00018196,2]
[372631172,1752718241702,-460.0,0.00018196,2]
[372631174,1752718241711,-460.0,0.00018196,2]
[372631175,1752718241721,-460.0,0.00018196,2]
[372631176,1752718241731,-2864.25066011,0.00018196,2]
[372631177,1752718241740,-460.0,0.00018196,2]
[372631178,1752718241750,-460.0,0.00018196,2]
[372631180,1752718241759,-460.0,0.00018196,2]
[372631182,1752718241769,-461.85424214,0.00018196,2]
[372631184,1752718241779,-460.0,0.00018196,2]
[372631186,1752718241789,-460.0,0.00018196,2]
[372631187,1752718241798,-460.0,0.00018196,2]
[372631189,1752718241808,-461.99807797,0.00018196,2]
[372631191,1752718241822,-460.0,0.00018196,2]
[372631193,1752718241832,-460.0,0.00018196,2]
[372631195,1752718241842,-460.0,0.00018197,2]
[372631197,1752718241851,-464.28259099,0.00018197,2]
[372631199,1752718241862,-503.11976027,0.00018197,2]
[372631201,1752718241871,-463.10066433,0.00018197,2]
[372631203,1752718241880,-460.0,0.00018197,2]
[372631204,1752718241890,-460.0,0.00018197,2]
[372631207,1752718241900,-460.0,0.00018197,2]
[372631209,1752718241910,-460.0,0.00018197,2]
[372631211,1752718241919,-464.6107008,0.00018197,2]
[372631213,1752718241928,-460.97958935,0.00018197,2]
[372631214,1752718241937,-460.0,0.00018197,2]
[372631217,1752718241947,-460.87930652,0.00018197,2]
[372631219,1752718241956,-462.58138973,0.00018197,2]
[372631221,1752718241966,-460.0,0.00018197,2]
[372631223,1752718241975,-460.0,0.00018197,2]
[372631226,1752718241985,-460.0,0.00018197,2]
[372631228,1752718241994,-460.0,0.00018197,2]
[372631230,1752718242004,-460.0,0.00018197,2]
[372631232,1752718242013,-461.24429448,0.00018197,2]
[372631235,1752718242022,-460.0,0.00018197,2]
[372631239,1752718242032,-462.34961306,0.00018197,2]
[372631242,1752718242041,-540.697437,0.00018197,2]
[372631245,1752718242050,-304.05501929,0.00018197,2]
[372631248,1752718242060,-463.6047221,0.00018197,2]
[372631251,1752718242069,-463.18048663,0.00018197,2]
[372631254,1752718242079,-460.0,0.00018197,2]
[372631256,1752718242088,-460.0,0.00018197,2]
[372631258,1752718242098,-460.0,0.00018197,2]
[372631260,1752718242107,-460.0,0.00018197,2]
[372631261,1752718242117,-461.08835067,0.00018197,2]
[372631263,1752718242126,-460.0,0.00018197,2]
[372631266,1752718242135,-460.0,0.00018197,2]
[372631268,1752718242145,-460.0,0.00018197,2]
[372631270,1752718242154,-460.0,0.00018197,2]
[372631272,1752718242163,-460.0,0.00018197,2]
[372631274,1752718242174,-460.0,0.00018197,2]
[372631276,1752718242183,-460.0,0.00018197,2]
[372631278,1752718242193,-460.0,0.00018197,2]
[372631280,1752718242203,-460.0,0.00018197,2]
[372631281,1752718242211,-460.0,0.00018197,2]
[372631282,1752718242221,-465.23007305,0.00018197,2]
[372631283,1752718242230,-464.61920774,0.00018197,2]
[372631284,1752718242240,-460.0,0.00018197,2]
[372631285,1752718242249,-460.0,0.00018197,2]
[372631286,1752718242259,-13662.58962676,0.00018365,2]
[372631287,1752718242276,-1552.07123054,0.00018367,2]
[372631288,1752718242293,-1000.0,0.00018367,2]
[372631289,1752718242307,-5000.0,0.00018426,2]
[372631290,1752718242321,-778.18030545,0.00018447,2]
[372631291,1752718242336,-460.0,0.00018463,2]
[372631292,1752718242352,-460.0,0.00018463,2]
[372631293,1752718242367,-460.0,0.00018463,2]
[372631294,1752718242384,-460.0,0.00018464,2]
[372631295,1752718242398,-460.0,0.00018464,2]
[372631296,1752718242412,-460.0,0.00018464,2]
[372631297,1752718242425,-460.0,0.00018464,2]
[372631298,1752718242441,-460.0,0.00018464,2]
[372631299,1752718242455,-460.0,0.00018464,2]
[372631300,1752718242467,-460.0,0.00018464,2]
[372631301,1752718242480,-464.70062463,0.00018464,2]
[372631302,1752718242493,-460.0,0.00018464,2]
[372631303,1752718242508,-460.0,0.00018464,2]
[372631304,1752718242526,-473.97,0.00018464,2]
[372631305,1752718242541,-3245.61,0.00018464,2]
[372631306,1752718242558,-460.0,0.00018464,2]
[372631307,1752718242571,-464.81193699,0.00018465,2]
[372631308,1752718242582,-460.0,0.00018465,2]
[372631309,1752718242594,-465.62901396,0.00018465,2]
[372631310,1752718242611,-460.0,0.00018465,2]
[372631311,1752718242626,-460.0,0.00018465,2]
[372631312,1752718242637,-8756.79,0.00018465,2]
[372631313,1752718242650,-460.0,0.00018465,2]
[372631314,1752718242664,-462.34368805,0.00018465,2]
[372631315,1752718242676,-460.0,0.00018465,2]
[372631316,1752718242687,-7790.94,0.00018465,2]
[372631317,1752718242700,-460.0,0.00018465,2]
[372631318,1752718242712,-460.0,0.00018465,2]
[372631319,1752718242724,-4473.94,0.00018465,2]
[372631320,1752718242736,-460.0,0.00018465,2]
[372631321,1752718242749,-460.0,0.00018465,2]
[372631322,1752718242762,-1013.19,0.00018465,2]
[372631323,1752718242775,-3103.64,0.00018465,2]
[372631324,1752718242787,-566.12,0.00018465,2]
[372631325,1752718242801,-467.9367844,0.00018465,2]
[372631326,1752718242815,-460.0,0.00018465,2]
[372631328,1752718242828,-3461.44,0.00018465,2]
[372631330,1752718242840,-460.0,0.00018465,2]
[372631331,1752718242853,-460.0,0.00018465,2]
[372631332,1752718242870,-3088.13,0.00018465,2]
[372631333,1752718242882,-460.0,0.00018465,2]
[372631334,1752718242896,-461.97020172,0.00018465,2]
[372631335,1752718242909,-460.0,0.00018465,2]
[372631336,1752718242922,-321.54651855,0.00018466,2]
[372631337,1752718242935,-460.0,0.00018466,2]
[372631338,1752718242948,-467.89374166,0.00018466,2]
[372631339,1752718242960,-461.57263422,0.00018466,2]
[372631340,1752718242974,-460.0,0.00018466,2]
[372631341,1752718242986,-464.65211707,0.00018466,2]
[372631342,1752718242999,-461.67976846,0.00018466,2]
[372631343,1752718243012,-460.0,0.00018466,2]
[372631344,1752718243025,-463.46307539,0.00018466,2]
[372631345,1752718243038,-464.60441599,0.00018466,2]
[372631346,1752718243050,-464.82552371,0.00018466,2]
[372631347,1752718243063,-460.0,0.00018466,2]
[372631348,1752718243075,-460.0,0.00018466,2]
[372631349,1752718243087,-460.0,0.00018466,2]
[372631350,1752718243100,-460.0,0.00018466,2]
[372631351,1752718243114,-460.0,0.00018466,2]
[372631352,1752718243126,-463.49769264,0.00018466,2]
[372631353,1752718243138,-460.0,0.00018466,2]
[372631354,1752718243149,-465.95500676,0.00018466,2]
[372631355,1752718243162,-460.0,0.00018466,2]
[372631356,1752718243174,-460.0,0.00018466,2]
[372631357,1752718243187,-467.94704902,0.00018466,2]
[372631358,1752718243198,-460.0,0.00018466,2]
[372631359,1752718243211,-460.0,0.00018466,2]
[372631360,1752718243223,-460.0,0.00018466,2]
[372631361,1752718243236,-857.9,0.00018466,2]
[372631362,1752718243248,-460.0,0.00018466,2]
[372631363,1752718243260,-463.41581243,0.00018466,2]
[372631364,1752718243270,-321.27103015,0.00018466,2]
[372631365,1752718243279,-2237.29,0.00018466,2]
[372631366,1752718243289,-460.0,0.00018466,2]
[372631377,1752718243432,-460.0,0.00018466,2]
[372631378,1752718243448,-460.0,0.00018466,2]
[372631379,1752718243458,-620.25,0.00018466,2]
[372631381,1752718243467,-460.0,0.00018466,2]
[372631382,1752718243477,-936.93,0.00018466,2]
[372631383,1752718243486,-460.0,0.00018466,2]
[372631384,1752718243496,-460.0,0.00018466,2]
[372631385,1752718243506,-460.0,0.00018466,2]
[372631386,1752718243515,-769.67,0.00018466,2]
[372631387,1752718243524,-460.0,0.00018466,2]
[372631388,1752718243534,-460.0,0.00018466,2]
[372631389,1752718243543,-460.0,0.00018466,2]
[372631390,1752718243553,-460.0,0.00018466,2]
[372631391,1752718243562,-746.18,0.00018466,2]
[372631392,1752718243572,-460.0,0.00018466,2]
[372631393,1752718243581,-875.17,0.00018466,2]
[372631394,1752718243590,-462.37300514,0.00018466,2]
[372631395,1752718243600,-460.0,0.00018466,2]
[372631396,1752718243609,-460.0,0.00018466,2]
[372631397,1752718243619,-1532.34,0.00018466,2]
[372631398,1752718243628,-460.0,0.00018466,2]
[372631399,1752718243638,-460.0,0.00018466,2]
[372631400,1752718243648,-465.62829426,0.00018466,2]
[372631401,1752718243657,-786.85,0.00018466,2]
[372631403,1752718243667,-460.0,0.00018466,2]
[372631405,1752718243676,-460.0,0.00018466,2]
[372631407,1752718243686,-460.0,0.00018466,2]
[372631409,1752718243695,-460.0,0.00018466,2]
[372631410,1752718243705,-460.0,0.00018466,2]
[372631411,1752718243715,-460.0,0.00018466,2]
[372631412,1752718243725,-460.0,0.00018466,2]
[372631413,1752718243735,-236.79912528,0.00018467,2]
[372631414,1752718243746,-519.99,0.00018467,2]
[372631415,1752718243756,-460.0,0.00018467,2]
[372631416,1752718243767,-151.0,0.00018467,2]
[372631417,1752718243776,-151.0,0.00018467,2]
[372631418,1752718243786,-460.0,0.00018467,2]
[372631419,1752718243795,-460.0,0.00018467,2]
[372631420,1752718243805,-712.09,0.00018467,2]
[372631421,1752718243819,-1726.3,0.00018467,2]
[372631422,1752718243828,-460.0,0.00018467,2]
[372631423,1752718243838,-898.95,0.00018467,2]
[372631424,1752718243848,-460.0,0.00018467,2]
[372631425,1752718243859,-463.37741134,0.00018467,2]
[372631426,1752718243869,-685.67,0.00018467,2]
[372631427,1752718243879,-206.506608,0.00018467,2]
[372631428,1752718243889,-214.28114757,0.00018467,2]
[372631429,1752718243899,-206.506608,0.00018467,2]
[372631430,1752718243908,-460.0,0.00018467,2]
[372631431,1752718243918,-460.0,0.00018467,2]
[372631432,1752718243927,-460.0,0.00018467,2]
[372631433,1752718243937,-590.44,0.00018467,2]
[372631434,1752718243946,-663.06,0.00018467,2]
[372631435,1752718243956,-460.0,0.00018467,2]
[372631436,1752718243965,-460.0,0.00018467,2]
[372631437,1752718243974,-466.16899632,0.00018468,2]
[372631438,1752718243984,-464.55806709,0.00018468,2]
[372631439,1752718243994,-466.56306021,0.00018468,2]
[372631440,1752718244003,-460.0,0.00018468,2]
[372631441,1752718244013,-460.0,0.00018468,2]
[372631442,1752718244023,-462.69581517,0.00018468,2]
[372631443,1752718244032,-466.08153271,0.00018468,2]
[372631444,1752718244042,-578.3,0.00018468,2]
[372631445,1752718244051,-460.0,0.00018468,2]
[372631446,1752718244061,-460.0,0.00018468,2]
[372631447,1752718244070,-805.3,0.00018468,2]
[372631448,1752718244079,-460.0,0.00018468,2]
[372631449,1752718244089,-466.75,0.00018468,2]
[372631450,1752718244099,-463.17519662,0.00018468,2]
[372631451,1752718244110,-460.0,0.00018468,2]
[372631452,1752718244120,-856.6,0.00018468,2]
[372631453,1752718244130,-460.0,0.00018468,2]
[372631454,1752718244139,-463.27812634,0.00018468,2]
[372631455,1752718244149,-649.93,0.00018468,2]
[372631456,1752718244160,-466.00269426,0.00018468,2]
[372631457,1752718244171,-967.19,0.00018468,2]
[372631458,1752718244181,-1071.56,0.00018468,2]
[372631459,1752718244190,-464.05851527,0.00018468,2]
[372631460,1752718244200,-460.0,0.00018468,2]
[372631461,1752718244210,-460.0,0.00018468,2]
[372631462,1752718244220,-460.0,0.00018468,2]
[372631463,1752718244229,-460.0,0.00018468,2]
[372631464,1752718244239,-282.708891,0.00018468,2]
[372631465,1752718244249,-462.99797256,0.00018468,2]
[372631466,1752718244258,-282.708891,0.00018468,2]
[372631467,1752718244268,-462.7393554,0.00018468,2]
[372631468,1752718244278,-465.60802618,0.00018468,2]
[372631469,1752718244288,-460.0,0.00018468,2]
[372631470,1752718244298,-460.0,0.00018468,2]
[372631471,1752718244307,-1415.87,0.00018468,2]
[372631472,1752718244317,-460.0,0.00018468,2]
[372631473,1752718244326,-462.89530471,0.00018468,2]
[372631474,1752718244335,-563.75,0.00018468,2]
[372631475,1752718244345,-935.83,0.00018468,2]
[372631476,1752718244354,-616.4,0.00018468,2]
[372631477,1752718244365,-460.0,0.00018468,2]
[372631478,1752718244375,-460.0,0.00018468,2]
[372631479,1752718244384,-2243.98,0.00018468,2]
[372631480,1752718244396,-470.37658101,0.00018468,2]
[372631481,1752718244406,-460.0,0.00018468,2]
[372631482,1752718244416,-4796.11,0.00018468,2]
[372631483,1752718244426,-5566.33,0.00018468,2]
[372631484,1752718244436,-460.0,0.00018468,2]
[372631485,1752718244446,-1639.65,0.00018468,2]
[372631486,1752718244456,-460.0,0.00018468,2]
[372631487,1752718244467,-460.0,0.00018468,2]
[372631488,1752718244479,-2114.97,0.00018468,2]
[372631489,1752718244490,-468.44487266,0.00018468,2]
[372631490,1752718244500,-740.05,0.00018468,2]
[372631491,1752718244509,-2723.58,0.00018468,2]
[372631492,1752718244518,-460.0,0.00018468,2]
[372631493,1752718244527,-460.0,0.00018468,2]
[372631494,1752718244537,-465.57713555,0.00018468,2]
[372631495,1752718244547,-460.0,0.00018468,2]
[372631496,1752718244557,-460.0,0.00018468,2]
[372631497,1752718244567,-460.0,0.00018468,2]
[372631498,1752718244577,-3000.53,0.00018468,2]
[372631499,1752718244588,-467.18223753,0.00018469,2]
[372631500,1752718244597,-460.0,0.00018469,2]
[372631501,1752718244606,-460.0,0.00018469,2]
[372631502,1752718244618,-460.0,0.00018469,2]
[372631503,1752718244628,-154.033612,0.00018469,2]
[372631504,1752718244638,-154.033612,0.00018469,2]
[372631505,1752718244647,-151.0,0.00018469,2]
[372631506,1752718244657,-464.66927989,0.00018469,2]
[372631507,1752718244667,-472.66320675,0.00018469,2]
[372631508,1752718244677,-462.91791883,0.00018469,2]
[372631509,1752718244686,-462.82306998,0.00018469,2]
[372631510,1752718244696,-460.0,0.00018469,2]
[372631511,1752718244705,-464.18653191,0.00018469,2]
[372631512,1752718244715,-463.58353233,0.00018469,2]
[372631513,1752718244724,-309.61378775,0.00018469,2]
[372631514,1752718244735,-151.0,0.00018469,2]
[372631515,1752718244744,-196.137102,0.00018469,2]
[372631516,1752718244755,-196.137102,0.00018469,2]
[372631517,1752718244764,-464.88502126,0.00018469,2]
[372631518,1752718244773,-460.0,0.00018469,2]
[372631519,1752718244782,-293.619493,0.00018469,2]
[372631520,1752718244793,-293.619493,0.00018469,2]
[372631521,1752718244802,-151.0,0.00018469,2]
[372631522,1752718244815,-151.0,0.00018469,2]
[372631523,1752718244826,-151.0,0.00018469,2]
[372631524,1752718244836,-151.0,0.00018469,2]
[372631525,1752718244846,-463.0403505,0.00018469,2]
[372631526,1752718244856,-460.0,0.00018469,2]
[372631527,1752718244868,-465.3550541,0.00018469,2]
[372631528,1752718244878,-465.67409786,0.00018469,2]
[372631529,1752718244889,-462.60895556,0.00018469,2]
[372631530,1752718244900,-152.687514,0.00018469,2]
[372631531,1752718244909,-460.0,0.00018469,2]
[372631532,1752718244919,-462.06,0.00018469,2]
[372631533,1752718244929,-460.0,0.00018469,2]
[372631534,1752718244938,-460.0,0.00018469,2]
[372631535,1752718244948,-461.25644611,0.00018469,2]
[372631536,1752718244957,-460.0,0.00018469,2]
[372631537,1752718244967,-466.91962471,0.00018469,2]
[372631538,1752718244977,-460.0,0.00018469,2]
[372631539,1752718244987,-464.3584912,0.00018469,2]
[372631540,1752718244997,-463.15845628,0.00018469,2]
[372631541,1752718245006,-343.772556,0.00018469,2]
[372631542,1752718245016,-460.0,0.00018469,2]
[372631543,1752718245026,-343.772556,0.00018469,2]
[372631544,1752718245036,-462.52691973,0.00018469,2]
[372631545,1752718245045,-206.506608,0.00018469,2]
[372631546,1752718245055,-206.506608,0.00018469,2]
[372631547,1752718245064,-460.0,0.00018469,2]
[372631548,1752718245074,-460.0,0.00018469,2]
[372631549,1752718245085,-461.48908098,0.00018469,2]
[372631550,1752718245094,-460.0,0.00018469,2]
[372631551,1752718245104,-460.0,0.00018469,2]
[372631552,1752718245115,-151.0,0.0001847,2]
[372631553,1752718245125,-151.0,0.0001847,2]
[372631554,1752718245134,-1129.212795,0.0001847,2]
[372631555,1752718245145,-1129.212795,0.0001847,2]
[372631556,1752718245154,-151.0,0.0001847,2]
[372631557,1752718245164,-790.212097,0.0001847,2]
[372631558,1752718245174,-790.212097,0.0001847,2]
[372631559,1752718245184,-460.0,0.0001847,2]
[372631560,1752718245193,-460.0,0.0001847,2]
[372631561,1752718245202,-468.11247826,0.0001847,2]
[372631562,1752718245212,-460.0,0.0001847,2]
[372631563,1752718245221,-282.708891,0.0001847,2]
[372631564,1752718245231,-282.708891,0.0001847,2]
[372631565,1752718245241,-460.0,0.0001847,2]
[372631566,1752718245250,-1078.71,0.0001847,2]
[372631567,1752718245260,-151.0,0.0001847,2]
[372631568,1752718245269,-460.0,0.0001847,2]
[372631569,1752718245279,-460.0,0.0001847,2]
[372631570,1752718245289,-460.0,0.0001847,2]
[372631571,1752718245299,-460.0,0.0001847,2]
[372631572,1752718245308,-460.0,0.0001847,2]
[372631573,1752718245317,-460.0,0.0001847,2]
[372631574,1752718245327,-460.0,0.0001847,2]
[372631575,1752718245337,-462.42542655,0.0001847,2]
[372631576,1752718245347,-460.0,0.0001847,2]
[372631577,1752718245356,-460.0,0.0001847,2]
[372631578,1752718245367,-460.0,0.0001847,2]
[372631579,1752718245376,-460.0,0.0001847,2]
[372631580,1752718245386,-460.0,0.0001847,2]
[372631581,1752718245395,-463.48761621,0.0001847,2]
[372631582,1752718245405,-460.0,0.00018471,2]
[372631583,1752718245414,-176.167926,0.00018471,2]
[372631584,1752718245423,-176.167926,0.00018471,2]
[372631585,1752718245433,-675.228133,0.00018471,2]
[372631586,1752718245442,-156.511881,0.00018471,2]
[372631587,1752718245451,-156.511881,0.00018471,2]
[372631588,1752718245460,-301.773818,0.00018471,2]
[372631589,1752718245469,-301.773818,0.00018471,2]
[372631590,1752718245478,-154.033612,0.00018471,2]
[372631591,1752718245487,-154.033612,0.00018471,2]
[372631592,1752718245496,-1129.212795,0.00018471,2]
[372631593,1752718245506,-1129.212795,0.00018471,2]
[372631594,1752718245515,-151.0,0.00018471,2]
[372631595,1752718245524,-460.0,0.00018471,2]
[372631596,1752718245533,-460.0,0.00018471,2]
[372631597,1752718245543,-460.0,0.00018471,2]
[372631598,1752718245552,-460.0,0.00018471,2]
[372631599,1752718245561,-790.212097,0.00018471,2]
[372631600,1752718245570,-790.212097,0.00018471,2]
[372631601,1752718245579,-151.0,0.00018471,2]
[372631602,1752718245588,-196.137102,0.00018471,2]
[372631603,1752718245597,-196.137102,0.00018471,2]
[372631604,1752718245607,-460.0,0.00018471,2]
[372631605,1752718245619,-460.0,0.00018471,2]
[372631606,1752718245629,-463.31848576,0.00018471,2]
[372631607,1752718245638,-463.69884253,0.00018471,2]
[372631608,1752718245647,-462.56936851,0.00018471,2]
[372631609,1752718245657,-460.0,0.00018471,2]
[372631610,1752718245756,-293.619493,0.00018471,2]